bitfinex-derivatives/quotes_BTCF0:USTF0_20250614
["timestamp","ask_amount","ask_price","bid_price","bid_amount"]
[1749873413962,0.64919676,105350.0,105340.0,2.11616312]
[1749873414167,0.64919676,105350.0,105340.0,2.10944841]
[1749873414372,0.64919676,105350.0,105340.0,2.12030147]
[1749873414572,0.64919676,105350.0,105340.0,1.28514768]
[1749873414867,0.64919676,105350.0,105340.0,0.44007104]
[1749873415070,0.64919676,105350.0,105340.0,1.40362483]
[1749873415267,0.64919676,105350.0,105340.0,1.37379963]
[1749873415572,0.64919676,105350.0,105340.0,1.39948647]
[1749873415771,0.64919676,105350.0,105340.0,1.38465572]
[1749873416171,0.64919676,105350.0,105340.0,1.38879407]
[1749873416674,0.64919676,105350.0,105340.0,1.40362786]
[1749873416975,0.64919676,105350.0,105340.0,1.40363056]
[1749873417170,0.64919676,105350.0,105340.0,1.38879677]
[1749873417375,0.64919676,105350.0,105340.0,1.40363056]
[1749873417575,0.64919676,105350.0,105340.0,1.4481239]
[1749873418174,0.64919676,105350.0,105340.0,0.45491056]
[1749873418376,0.64919676,105350.0,105340.0,1.38879677]
[1749873418578,0.64919676,105350.0,105340.0,1.31475251]
[1749873418769,0.64919676,105350.0,105340.0,1.29991872]
[1749873419277,0.64919676,105350.0,105340.0,1.31475252]
[1749873419970,0.64919676,105350.0,105340.0,1.28905993]
[1749873420173,0.64919676,105350.0,105340.0,1.30389373]
[1749873421380,0.64919676,105350.0,105340.0,1.3147506]
[1749873421565,0.64919676,105350.0,105340.0,1.28905993]
[1749873421769,0.64919676,105350.0,105340.0,1.3147506]
[1749873422169,0.64919676,105350.0,105340.0,1.44811994]
[1749873422769,0.64919676,105350.0,105340.0,1.43328614]
[1749873422966,0.64919676,105350.0,105340.0,1.44811993]
[1749873423577,0.64919676,105350.0,105340.0,1.43726306]
[1749873423766,0.64919676,105350.0,105340.0,1.43328614]
[1749873423970,0.64919676,105350.0,105340.0,1.44811993]
[1749873424677,0.64919676,105350.0,105340.0,1.43726306]
[1749873424878,0.64919676,105350.0,105340.0,1.40362864]
[1749873425578,0.64919676,105350.0,105340.0,1.4036288]
[1749873425777,0.64919676,105350.0,105340.0,1.38879501]
[1749873425978,0.64919676,105350.0,105340.0,1.4036288]
[1749873426179,0.64919676,105350.0,105340.0,1.38879501]
[1749873426676,0.64919676,105350.0,105340.0,1.37793798]
[1749873426874,0.64919676,105350.0,105340.0,1.4036288]
[1749873427080,0.64919676,105350.0,105340.0,0.4549088]
[1749873427276,0.64919676,105350.0,105340.0,1.38875424]
[1749873427475,0.64919676,105350.0,105340.0,1.40358813]
[1749873427676,0.64919676,105350.0,105340.0,1.43722276]
[1749873427878,0.64919676,105350.0,105340.0,1.44807917]
[1749873428183,0.64919676,105350.0,105340.0,1.44807919]
[1749873428386,0.64919676,105350.0,105340.0,1.43324516]
[1749873428876,0.64919676,105350.0,105340.0,1.44807919]
[1749873429386,0.64919676,105350.0,105340.0,1.42238885]
[1749873429579,0.64919676,105350.0,105340.0,1.44807918]
[1749873430081,0.64919676,105350.0,105340.0,1.43324516]
[1749873430283,0.64919676,105350.0,105340.0,1.44807919]
[1749873430484,0.64919676,105350.0,105340.0,1.43324516]
[1749873430685,0.64919676,105350.0,105340.0,1.44807919]
[1749873430983,0.64919676,105350.0,105340.0,1.43722288]
[1749873431484,0.64919676,105350.0,105340.0,1.34834483]
[1749873431778,0.64919676,105350.0,105340.0,1.34436872]
[1749873431985,0.64919676,105350.0,105340.0,1.3335108]
[1749873432182,0.64919676,105350.0,105340.0,1.34834483]
[1749873432385,0.64919676,105350.0,105340.0,1.31471188]
[1749873432679,0.64919676,105350.0,105340.0,1.29987785]
[1749873433080,0.64919676,105350.0,105340.0,1.31471188]
[1749873433286,0.64919676,105350.0,105340.0,1.30385396]
[1749873433484,0.64919676,105350.0,105340.0,1.31471668]
[1749873434882,0.64919676,105350.0,105340.0,1.3147167]
[1749873435582,0.64919676,105350.0,105340.0,1.31471671]
[1749873435779,0.64919676,105350.0,105340.0,1.29988266]
[1749873435983,0.64919676,105350.0,105340.0,1.30385398]
[1749873436185,0.64919676,105350.0,105340.0,1.31471671]
[1749873436390,0.64919676,105350.0,105340.0,1.29987444]
[1749873436689,0.64919676,105350.0,105340.0,1.34833973]
[1749873436888,0.64919676,105350.0,105340.0,1.35919425]
[1749873437083,0.64919676,105350.0,105340.0,1.33350567]
[1749873437281,0.64919676,105350.0,105340.0,1.34833974]
[1749873437485,0.64919676,105350.0,105340.0,1.35919297]
[1749873437685,0.64919676,105350.0,105340.0,1.33350567]
[1749873437886,0.64919676,105350.0,105340.0,1.35919297]
[1749873438489,0.64919676,105350.0,105340.0,1.33350567]
[1749873438686,0.64919676,105350.0,105340.0,1.35919299]
[1749873438887,0.64919676,105350.0,105340.0,1.34435891]
[1749873439391,0.64919676,105350.0,105340.0,1.35919303]
[1749873439586,0.64919676,105350.0,105340.0,1.35920126]
[1749873439785,0.64919676,105350.0,105340.0,1.35920127]
[1749873440393,0.64919676,105350.0,105340.0,1.36317393]
[1749873440593,0.64919676,105350.0,105340.0,1.35920127]
[1749873440893,0.64919676,105350.0,105340.0,1.37403542]
[1749873441293,0.64919676,105350.0,105340.0,1.35920127]
[1749873441589,0.64919676,105350.0,105340.0,1.11410932]
[1749873441782,0.64919676,105350.0,105340.0,0.35473121]
[1749873441987,0.96919676,105350.0,105340.0,0.33989643]
[1749873442189,0.64919676,105350.0,105340.0,0.35473139]
[1749873442583,0.66919676,105350.0,105340.0,0.33989643]
[1749873442888,0.66919676,105350.0,105340.0,0.34386961]
[1749873443084,0.66919676,105350.0,105340.0,0.13389087]
[1749873443387,1.04096019,105350.0,105340.0,0.10424106]
[1749873443589,1.40096019,105350.0,105340.0,0.115103]
[1749873443787,1.65096019,105350.0,105340.0,0.06952167]
[1749873443987,1.65096019,105350.0,105340.0,0.05468517]
[1749873444292,0.189791,105330.0,105320.0,0.234436]
[1749873444495,0.911391,105330.0,105320.0,0.45801096]
[1749873444694,1.006591,105330.0,105320.0,0.45801096]
[1749873444894,1.006591,105330.0,105320.0,0.41352522]
[1749873445489,1.007591,105330.0,105320.0,0.42652522]
[1749873445692,1.009591,105330.0,105320.0,0.44852522]
[1749873445996,1.009591,105330.0,105320.0,0.40335026]
[1749873446594,1.009591,105330.0,105320.0,0.40235026]
[1749873446787,1.009591,105330.0,105320.0,0.40035026]
[1749873447689,1.349591,105330.0,105320.0,0.21058186]
[1749873447901,1.009591,105330.0,105320.0,0.21058186]
[1749873448095,1.389591,105330.0,105320.0,0.21058186]
[1749873448293,1.359591,105330.0,105320.0,0.21058186]
[1749873448595,1.009591,105330.0,105320.0,0.21058186]
[1749873449994,1.558031,105330.0,105320.0,0.03214186]
[1749873450191,1.77145677,105330.0,105320.0,0.03214186]
[1749873451097,2.54181677,105330.0,105320.0,0.03214186]
[1749873454601,2.55081677,105330.0,105320.0,0.00114186]
[1749873454991,2.432335,105330.0,105320.0,0.00114186]
[1749873456201,2.432335,105330.0,105320.0,0.01598195]
[1749873456596,2.432335,105330.0,105320.0,0.00114186]
[1749873456799,2.432335,105330.0,105320.0,0.01598194]
[1749873456998,2.432335,105330.0,105320.0,0.01598195]
[1749873457202,2.432335,105330.0,105320.0,0.00114186]
[1749873457494,2.432335,105330.0,105320.0,0.01598195]
[1749873460595,2.432335,105330.0,105320.0,0.00114186]
[1749873460799,2.432335,105330.0,105320.0,0.01598195]
[1749873461303,2.432335,105330.0,105320.0,0.0159819]
[1749873461601,2.432335,105330.0,105320.0,0.01598189]
[1749873461798,2.432335,105330.0,105320.0,0.00114186]
[1749873461999,2.432335,105330.0,105320.0,0.01598189]
[1749873463105,2.432335,105330.0,105320.0,0.00114186]
[1749873463298,2.432335,105330.0,105320.0,0.01598189]
[1749873463603,2.432335,105330.0,105320.0,0.00114186]
[1749873463802,2.432335,105330.0,105320.0,0.01598189]
[1749873464300,2.337391,105330.0,105320.0,0.0159817]
[1749873464602,2.337391,105330.0,105320.0,0.01598175]
[1749873465996,2.337391,105330.0,105320.0,0.01598196]
[1749873466392,2.337391,105330.0,105320.0,0.00114186]
[1749873466601,2.337391,105330.0,105320.0,0.01598163]
[1749873466898,2.337391,105330.0,105320.0,0.00114186]
[1749873467303,2.337391,105330.0,105320.0,0.01598163]
[1749873467802,2.337391,105330.0,105320.0,0.00114186]
[1749873468003,2.337391,105330.0,105320.0,0.01598163]
[1749873470109,2.337391,105330.0,105320.0,0.00114186]
[1749873470301,2.337391,105330.0,105320.0,0.01598163]
[1749873470501,2.337391,105330.0,105320.0,0.00114186]
[1749873470702,2.337391,105330.0,105320.0,0.01598163]
[1749873471507,2.337391,105330.0,105320.0,0.01598164]
[1749873471712,2.337391,105330.0,105320.0,0.0159817]
[1749873472407,2.45587277,105330.0,105320.0,0.0159817]
[1749873476105,1.50707277,105330.0,105320.0,0.0159817]
[1749873476306,2.45591277,105330.0,105320.0,0.01598178]
[1749873477703,2.45591277,105330.0,105320.0,0.00114186]
[1749873477914,1.50707277,105330.0,105320.0,0.01598178]
[1749873478102,2.45591277,105330.0,105320.0,0.01598178]
[1749873479213,2.337431,105330.0,105320.0,0.01598178]
[1749873479412,2.48565072,105330.0,105320.0,0.01598178]
[1749873480015,2.48565072,105330.0,105320.0,0.00114186]
[1749873480211,2.48565072,105330.0,105320.0,0.01598178]
[1749873480612,2.48565072,105330.0,105320.0,0.01598201]
[1749873482119,2.48565072,105330.0,105320.0,0.00114186]
[1749873482417,2.48565072,105330.0,105320.0,0.01598201]
[1749873483025,2.48565072,105330.0,105320.0,0.00114186]
[1749873483520,2.48565072,105330.0,105320.0,0.01598201]
[1749873484116,2.48565072,105330.0,105320.0,0.01484015]
[1749873484324,0.1898089,105320.0,105310.0,0.0313]
[1749873484515,1.08574268,105320.0,105310.0,0.07608226]
[1749873485518,1.09074268,105320.0,105310.0,0.07708226]
[1749873486218,1.09074268,105320.0,105310.0,0.04578226]
[1749873486419,1.09074268,105320.0,105310.0,0.001]
[1749873486721,1.12442862,105320.0,105310.0,0.001]
[1749873487923,1.06255699,105320.0,105310.0,0.190827]
[1749873488221,2.01139699,105320.0,105310.0,0.254327]
[1749873488525,2.01139699,105320.0,105310.0,0.33217151]
[1749873489226,2.01139699,105320.0,105310.0,0.34287297]
[1749873489423,2.01139699,105320.0,105310.0,0.33217151]
[1749873489617,2.01139699,105320.0,105310.0,0.34287297]
[1749873490019,2.01139699,105320.0,105310.0,0.34287289]
[1749873490427,2.01139699,105320.0,105310.0,0.34287287]
[1749873491126,2.01139699,105320.0,105310.0,0.34287285]
[1749873491517,2.01139699,105320.0,105310.0,0.33217151]
[1749873491828,2.01139699,105320.0,105310.0,0.34287877]
[1749873492129,2.01139699,105320.0,105310.0,0.33217151]
[1749873492321,2.01139699,105320.0,105310.0,0.34287877]
[1749873492925,2.01139699,105320.0,105310.0,0.33217151]
[1749873493124,2.01139699,105320.0,105310.0,0.34287878]
[1749873493332,2.01139699,105320.0,105310.0,0.34287823]
[1749873493632,0.85255699,105320.0,105310.0,0.33217151]
[1749873493826,2.02139699,105320.0,105310.0,0.34287822]
[1749873494425,2.02139699,105320.0,105310.0,0.33217151]
[1749873494730,2.02139699,105320.0,105310.0,0.34289262]
[1749873494930,2.02139699,105320.0,105310.0,0.287327]
[1749873495122,2.02139699,105320.0,105310.0,0.29804811]
[1749873495318,2.02139699,105320.0,105310.0,0.254327]
[1749873496025,2.02139699,105320.0,105310.0,0.2650448]
[1749873496226,2.02139699,105320.0,105310.0,0.27988462]
[1749873496427,2.02139699,105320.0,105310.0,0.26916682]
[1749873496723,2.02139699,105320.0,105310.0,0.27987998]
[1749873496925,2.02139699,105320.0,105310.0,0.27987997]
[1749873497930,2.02139699,105320.0,105310.0,0.254327]
[1749873498131,2.16961671,105320.0,105310.0,0.2691668]
[1749873498429,2.02139699,105320.0,105310.0,0.2691668]
[1749873498629,2.16961671,105320.0,105310.0,0.26916673]
[1749873498831,2.02139699,105320.0,105310.0,0.26916673]
[1749873499031,2.02139699,105320.0,105310.0,0.32472228]
[1749873499228,2.02139699,105320.0,105310.0,0.30988252]
[1749873499531,2.02139699,105320.0,105310.0,0.28100914]
[1749873499728,2.02139699,105320.0,105310.0,0.29172835]
[1749873500530,1.9029489,105320.0,105310.0,0.29172835]
[1749873500727,1.9029489,105320.0,105310.0,0.27688857]
[1749873500937,1.9029489,105320.0,105310.0,0.27688858]
[1749873501236,1.9029489,105320.0,105310.0,0.29172838]
[1749873501537,1.9029489,105320.0,105310.0,0.27688857]
[1749873501736,1.9029489,105320.0,105310.0,0.29172837]
[1749873502236,1.9029489,105320.0,105310.0,0.27688857]
[1749873502735,1.9029489,105320.0,105310.0,0.29172836]
[1749873502937,1.9029489,105320.0,105310.0,0.27688857]
[1749873503133,1.9029489,105320.0,105310.0,0.26616937]
[1749873503439,1.9029489,105320.0,105310.0,0.29172833]
[1749873503637,1.9029489,105320.0,105310.0,0.29172836]
[1749873503835,1.9029489,105320.0,105310.0,0.27688857]
[1749873504034,1.9029489,105320.0,105310.0,0.29172836]
[1749873504232,1.9029489,105320.0,105310.0,0.2917352]
[1749873504537,2.02139699,105320.0,105310.0,0.281016]
[1749873504739,2.02139699,105320.0,105310.0,0.2917352]
[1749873504934,1.9029489,105320.0,105310.0,0.2917352]
[1749873506038,1.9029489,105320.0,105310.0,0.26617621]
[1749873506239,1.9029489,105320.0,105310.0,0.2917352]
[1749873506638,1.9029489,105320.0,105310.0,0.281016]
[1749873506837,2.05469699,105320.0,105310.0,0.281016]
[1749873507039,2.05469699,105320.0,105310.0,0.28101601]
[1749873507227,2.05469699,105320.0,105310.0,0.26617621]
[1749873507427,2.05469699,105320.0,105310.0,0.28101601]
[1749873509839,2.05469699,105320.0,105310.0,0.26617621]
[1749873510040,2.05469699,105320.0,105310.0,0.28101602]
[1749873510741,2.05469699,105320.0,105310.0,0.23567621]
[1749873511346,2.05469699,105320.0,105310.0,0.25051602]
[1749873511534,2.05469699,105320.0,105310.0,0.23567621]
[1749873511845,2.05469699,105320.0,105310.0,0.25051602]
[1749873512036,2.05469699,105320.0,105310.0,0.23567621]
[1749873512238,2.05469699,105320.0,105310.0,0.25051602]
[1749873513446,2.05469699,105320.0,105310.0,0.23567621]
[1749873513645,2.05469699,105320.0,105310.0,0.25051602]
[1749873514046,2.05469699,105320.0,105310.0,0.23567621]
[1749873514247,2.05469699,105320.0,105310.0,0.26123959]
[1749873514550,2.05469699,105320.0,105310.0,0.25051602]
[1749873514744,2.05469699,105320.0,105310.0,0.23567621]
[1749873514951,2.05469699,105320.0,105310.0,0.24639978]
[1749873515145,2.05469699,105320.0,105310.0,0.25051602]
[1749873515345,2.05469699,105320.0,105310.0,0.26123959]
[1749873516255,2.05469699,105320.0,105310.0,0.25051602]
[1749873516441,2.05469699,105320.0,105310.0,0.24639978]
[1749873516646,2.05469699,105320.0,105310.0,0.26123959]
[1749873517150,2.05469699,105320.0,105310.0,0.26125228]
[1749873517749,2.05469699,105320.0,105310.0,0.26125229]
[1749873518254,2.05469699,105320.0,105310.0,0.26125231]
[1749873518453,2.05469699,105320.0,105310.0,0.2612523]
[1749873518957,2.05469699,105320.0,105310.0,0.24641248]
[1749873519151,2.05469699,105320.0,105310.0,0.26125229]
[1749873519454,2.05469699,105320.0,105310.0,0.24641247]
[1749873519851,2.05469699,105320.0,105310.0,0.26125228]
[1749873520151,2.05469699,105320.0,105310.0,0.25051602]
[1749873520350,2.05469699,105320.0,105310.0,0.26125228]
[1749873520748,2.05469699,105320.0,105310.0,0.23567621]
[1749873520948,2.05469699,105320.0,105310.0,0.25051602]
[1749873521150,2.05469699,105320.0,105310.0,0.26125228]
[1749873521543,2.05469699,105320.0,105310.0,0.24641247]
[1749873521741,2.05469699,105320.0,105310.0,0.26125228]
[1749873521952,2.05469699,105320.0,105310.0,0.26125227]
[1749873522144,2.05469699,105320.0,105310.0,0.24641247]
[1749873522351,2.05469699,105320.0,105310.0,0.23567621]
[1749873522551,2.05469699,105320.0,105310.0,0.25051601]
[1749873522751,2.05469699,105320.0,105310.0,0.26125232]
[1749873522951,2.05469699,105320.0,105310.0,0.25051603]
[1749873523156,2.05469699,105320.0,105310.0,0.26125234]
[1749873523353,2.05469699,105320.0,105310.0,0.25051603]
[1749873523556,2.05469699,105320.0,105310.0,0.26125234]
[1749873524557,2.05469699,105320.0,105310.0,0.23567621]
[1749873524757,2.05469699,105320.0,105310.0,0.26125287]
[1749873525360,2.05469699,105320.0,105310.0,0.24641305]
[1749873525857,2.05469699,105320.0,105310.0,0.26125287]
[1749873526057,2.05469699,105320.0,105310.0,0.26125286]
[1749873526359,2.05469699,105320.0,105310.0,0.24641304]
[1749873526560,2.05469699,105320.0,105310.0,0.23567621]
[1749873526757,2.05469699,105320.0,105310.0,0.26125335]
[1749873526958,2.05469699,105320.0,105310.0,0.25051603]
[1749873527158,2.05469699,105320.0,105310.0,0.26125335]
[1749873527353,2.05469699,105320.0,105310.0,0.25051603]
[1749873527553,2.05469699,105320.0,105310.0,0.23567621]
[1749873527753,2.05469699,105320.0,105310.0,0.26125335]
[1749873527953,2.05469699,105320.0,105310.0,0.24641353]
[1749873528357,2.05469699,105320.0,105310.0,0.26125335]
[1749873528761,2.05469699,105320.0,105310.0,0.24641353]
[1749873529064,2.05469699,105320.0,105310.0,0.07142635]
[1749873529263,2.05469699,105320.0,105310.0,0.0714264]
[1749873529755,1.72469699,105320.0,105310.0,0.0714264]
[1749873530060,2.07469699,105320.0,105310.0,0.0714264]
[1749873530256,2.07469699,105320.0,105310.0,0.05658658]
[1749873530560,2.07469699,105320.0,105310.0,0.0714264]
[1749873531059,2.07469699,105320.0,105310.0,0.0714261]
[1749873531459,2.07469699,105320.0,105310.0,0.06068948]
[1749873531665,2.07469699,105320.0,105310.0,0.07142673]
[1749873531861,2.07469699,105320.0,105310.0,0.07142679]
[1749873532063,2.07469699,105320.0,105310.0,0.06068975]
[1749873532263,2.07469699,105320.0,105310.0,0.07142706]
[1749873532454,2.07469699,105320.0,105310.0,0.07145794]
[1749873532655,2.07469699,105320.0,105310.0,0.001]
[1749873532855,2.07469699,105320.0,105310.0,0.01584054]
[1749873533058,2.07469699,105320.0,105310.0,0.02657785]
[1749873533260,2.07469699,105320.0,105310.0,0.001]
[1749873533459,2.07469699,105320.0,105310.0,0.01584054]
[1749873533661,2.07469699,105320.0,105310.0,0.02657785]
[1749873533855,2.07469699,105320.0,105310.0,0.01173731]
[1749873534055,2.07469699,105320.0,105310.0,0.001]
[1749873534364,2.07469699,105320.0,105310.0,0.0714535]
[1749873534564,2.07469699,105320.0,105310.0,0.02657785]
[1749873535061,2.10446862,105320.0,105310.0,0.02657785]
[1749873535263,2.10446862,105320.0,105310.0,0.01173731]
[1749873535464,2.10446862,105320.0,105310.0,0.02657785]
[1749873535954,2.10446862,105320.0,105310.0,0.0265817]
[1749873536157,2.10446862,105320.0,105310.0,0.01584046]
[1749873536357,2.10446862,105320.0,105310.0,0.02658156]
[1749873536558,2.10446862,105320.0,105310.0,0.02658155]
[1749873537162,2.10446862,105320.0,105310.0,0.01584043]
[1749873537559,2.10446862,105320.0,105310.0,0.02657767]
[1749873537862,2.10446862,105320.0,105310.0,0.02657768]
[1749873538067,2.10446862,105320.0,105310.0,0.01173725]
[1749873538262,2.10446862,105320.0,105310.0,0.001]
[1749873538465,2.10446862,105320.0,105310.0,0.01584043]
[1749873538667,2.10446862,105320.0,105310.0,0.02657767]
[1749873538867,2.10446862,105320.0,105310.0,0.001]
[1749873539067,2.10446862,105320.0,105310.0,0.02657767]
[1749873540366,2.08446862,105320.0,105310.0,0.02657676]
[1749873541472,2.08446862,105320.0,105310.0,0.02657677]
[1749873541873,2.08446862,105320.0,105310.0,0.001]
[1749873542082,2.08446862,105320.0,105310.0,0.02657421]
[1749873542578,2.08446862,105320.0,105310.0,0.02657446]
[1749873542778,2.08446862,105320.0,105310.0,0.02657448]
[1749873542980,2.08446862,105320.0,105310.0,0.01584064]
[1749873543174,2.08446862,105320.0,105310.0,0.0265745]
[1749873543379,2.08446862,105320.0,105310.0,0.02657453]
[1749873543777,2.08446862,105320.0,105310.0,0.01584067]
[1749873544078,2.08446862,105320.0,105310.0,0.0117338]
[1749873544479,2.08446862,105320.0,105310.0,0.02657434]
[1749873544980,2.05475144,105320.0,105310.0,0.06070967]
[1749873545179,2.05475144,105320.0,105310.0,0.01584054]
[1749873545480,2.05475144,105320.0,105310.0,0.02657444]
[1749873545675,2.05475144,105320.0,105310.0,0.01584061]
[1749873546073,2.05475144,105320.0,105310.0,0.01173383]
[1749873546279,2.05475144,105320.0,105310.0,0.01584061]
[1749873546583,2.05475144,105320.0,105310.0,0.02657444]
[1749873547077,2.05475144,105320.0,105310.0,0.01173383]
[1749873547281,2.05475144,105320.0,105310.0,0.02657444]
[1749873547484,2.05475144,105320.0,105310.0,0.01173383]
[1749873547671,2.05475144,105320.0,105310.0,0.01584061]
[1749873548072,2.05475144,105320.0,105310.0,0.02657444]
[1749873548272,2.05475144,105320.0,105310.0,0.01584061]
[1749873548477,2.05475144,105320.0,105310.0,0.02657444]
[1749873548973,2.05475144,105320.0,105310.0,0.01584061]
[1749873549177,2.05475144,105320.0,105310.0,0.02657444]
[1749873549573,2.05475144,105320.0,105310.0,0.01173383]
[1749873549778,2.05475144,105320.0,105310.0,0.02657444]
[1749873551375,2.05475144,105320.0,105310.0,0.001]
[1749873551588,2.05475144,105320.0,105310.0,0.01584061]
[1749873551784,2.05475144,105320.0,105310.0,0.02657444]
[1749873552183,1.28435144,105320.0,105310.0,0.21640134]
[1749873552381,1.9359289,105320.0,105310.0,0.07151055]
[1749873552586,1.9359289,105320.0,105310.0,0.26133744]
[1749873552784,1.9359289,105320.0,105310.0,0.26133763]
[1749873553587,1.9359289,105320.0,105310.0,0.07151073]
[1749873553891,1.9359289,105320.0,105310.0,0.0566702]
[1749873554093,1.9359289,105320.0,105310.0,0.07151073]
[1749873554587,1.9359289,105320.0,105310.0,0.06077671]
[1749873554792,1.9359289,105320.0,105310.0,0.07151073]
[1749873555293,1.9359289,105320.0,105310.0,0.07151075]
[1749873556394,1.9359289,105320.0,105310.0,0.07151187]
[1749873556692,1.9359289,105320.0,105310.0,0.05667133]
[1749873556893,1.9359289,105320.0,105310.0,0.07151187]
[1749873557592,1.9359289,105320.0,105310.0,0.06077672]
[1749873558096,1.9359289,105320.0,105310.0,0.07151187]
[1749873559194,1.9359289,105320.0,105310.0,0.06077672]
[1749873559396,1.9359289,105320.0,105310.0,0.07151187]
[1749873559795,1.9359289,105320.0,105310.0,0.06077672]
[1749873559995,1.9359289,105320.0,105310.0,0.07151187]
[1749873560295,1.9359289,105320.0,105310.0,0.05667133]
[1749873560494,1.9359289,105320.0,105310.0,0.07151187]
[1749873560893,1.9359289,105320.0,105310.0,0.06077672]
[1749873561195,1.9359289,105320.0,105310.0,0.07151269]
[1749873561497,1.9359289,105320.0,105310.0,0.04593618]
[1749873561690,1.9359289,105320.0,105310.0,0.07151157]
[1749873562183,2.05443144,105320.0,105310.0,0.07151157]
[1749873562786,2.05443144,105320.0,105310.0,0.07151156]
[1749873563195,2.05443144,105320.0,105310.0,0.06077671]
[1749873563396,2.05443144,105320.0,105310.0,0.07151157]
[1749873563793,1.10591144,105320.0,105310.0,0.26133867]
[1749873563996,2.05423144,105320.0,105310.0,0.07151156]
[1749873564390,2.05423144,105320.0,105310.0,0.07151153]
[1749873564689,2.05423144,105320.0,105310.0,0.07151155]
[1749873565400,2.05423144,105320.0,105310.0,0.07151156]
[1749873565592,2.05423144,105320.0,105310.0,0.05667103]
[1749873565786,2.05423144,105320.0,105310.0,0.07151156]
[1749873565993,2.05423144,105320.0,105310.0,0.05667102]
[1749873566188,2.05423144,105320.0,105310.0,0.07151154]
[1749873566393,2.05423144,105320.0,105310.0,0.05667102]
[1749873566596,2.05423144,105320.0,105310.0,0.07151154]
[1749873566797,1.10591144,105320.0,105310.0,0.23576328]
[1749873566997,2.05411144,105320.0,105310.0,0.26133864]
[1749873567693,2.05411144,105320.0,105310.0,0.24649878]
[1749873567895,2.05411144,105320.0,105310.0,0.26133931]
[1749873568195,2.05411144,105320.0,105310.0,0.24649878]
[1749873568401,2.05411144,105320.0,105310.0,0.26133931]
[1749873568595,2.05411144,105320.0,105310.0,0.23576328]
[1749873568798,2.05411144,105320.0,105310.0,0.2613393]
[1749873569097,2.05411144,105320.0,105310.0,0.26133931]
[1749873569300,2.05411144,105320.0,105310.0,0.25060381]
[1749873569496,2.05411144,105320.0,105310.0,0.26133931]
[1749873570095,2.05411144,105320.0,105310.0,0.25060381]
[1749873570300,2.05411144,105320.0,105310.0,0.26133931]
[1749873571700,2.05411144,105320.0,105310.0,0.25060381]
[1749873571903,2.05411144,105320.0,105310.0,0.26133979]
[1749873572301,2.05411144,105320.0,105310.0,0.23576328]
[1749873572500,2.05411144,105320.0,105310.0,0.26133978]
[1749873572701,2.05411144,105320.0,105310.0,0.2506038]
[1749873572900,2.05411144,105320.0,105310.0,0.07151267]
[1749873573106,2.05411144,105320.0,105310.0,0.0607767]
[1749873573302,2.05411144,105320.0,105310.0,0.07151267]
[1749873573499,2.05411144,105320.0,105310.0,0.04593618]
[1749873573700,2.05411144,105320.0,105310.0,0.05667216]
[1749873573901,2.05411144,105320.0,105310.0,0.06077671]
[1749873574107,2.05411144,105320.0,105310.0,0.07151277]
[1749873574298,2.05411144,105320.0,105310.0,0.06077671]
[1749873574498,2.05411144,105320.0,105310.0,0.07151277]
[1749873574803,2.05411144,105320.0,105310.0,0.07151276]
[1749873574992,2.05411144,105320.0,105310.0,0.04593618]
[1749873575403,2.05411144,105320.0,105310.0,0.02657659]
[1749873575707,2.20233116,105320.0,105310.0,0.0265766]
[1749873576003,2.20233116,105320.0,105310.0,0.02657658]
[1749873576394,2.05411144,105320.0,105310.0,0.06079373]
[1749873576593,2.05411144,105320.0,105310.0,0.07153011]
[1749873576797,2.05411144,105320.0,105310.0,0.07153014]
[1749873577399,2.05411144,105320.0,105310.0,0.04595321]
[1749873577605,2.05411144,105320.0,105310.0,0.06079375]
[1749873577803,2.05411144,105320.0,105310.0,0.07153014]
[1749873577995,2.05411144,105320.0,105310.0,0.04595321]
[1749873578201,2.20233116,105320.0,105310.0,0.02657693]
[1749873578803,2.20233116,105320.0,105310.0,0.01584054]
[1749873579202,2.20233116,105320.0,105310.0,0.01173639]
[1749873579403,2.20233116,105320.0,105310.0,0.02657693]
[1749873579807,2.20233116,105320.0,105310.0,0.01584054]
[1749873580103,2.20233116,105320.0,105310.0,0.001]
[1749873580296,2.20233116,105320.0,105310.0,0.01173639]
[1749873580503,2.20233116,105320.0,105310.0,0.02657693]
[1749873581304,2.20233116,105320.0,105310.0,0.001]
[1749873581501,2.20233116,105320.0,105310.0,0.02657693]
[1749873581901,2.20233116,105320.0,105310.0,0.02657709]
[1749873582209,2.20233116,105320.0,105310.0,0.02657754]
[1749873582404,2.08382862,105320.0,105310.0,0.011737]
[1749873582608,2.08382862,105320.0,105310.0,0.02657754]
[1749873583410,2.08382862,105320.0,105310.0,0.02657753]
[1749873583711,2.20244824,105320.0,105310.0,0.07152326]
[1749873584011,2.20244824,105320.0,105310.0,0.02657745]
[1749873584203,2.20244824,105320.0,105310.0,0.01173698]
[1749873584708,2.20244824,105320.0,105310.0,0.02657746]
[1749873585212,2.08382862,105320.0,105310.0,0.01584048]
[1749873585408,2.08382862,105320.0,105310.0,0.02657747]
[1749873585806,2.08382862,105320.0,105310.0,0.04394792]
[1749873586010,2.08382862,105320.0,105310.0,0.05878841]
[1749873586210,2.08382862,105320.0,105310.0,0.04805143]
[1749873586405,2.08382862,105320.0,105310.0,0.0587844]
[1749873586612,2.08382862,105320.0,105310.0,0.05878454]
[1749873587107,2.08382862,105320.0,105310.0,0.04805143]
[1749873587312,2.08382862,105320.0,105310.0,0.05878453]
[1749873587510,2.08382862,105320.0,105310.0,0.05878455]
[1749873587713,2.08382862,105320.0,105310.0,0.04394407]
[1749873588511,2.08382862,105320.0,105310.0,0.05878456]
[1749873588913,2.08382862,105320.0,105310.0,0.03321094]
[1749873589115,2.08382862,105320.0,105310.0,0.05878456]
[1749873589507,2.08382862,105320.0,105310.0,0.04394407]
[1749873589706,2.08382862,105320.0,105310.0,0.05878456]
[1749873589903,2.08382862,105320.0,105310.0,0.04394407]
[1749873590109,2.08382862,105320.0,105310.0,0.24861164]
[1749873590312,2.08382862,105320.0,105310.0,0.05878454]
[1749873590508,2.08382862,105320.0,105310.0,0.03321094]
[1749873590713,2.08358862,105320.0,105310.0,0.05878454]
[1749873590908,2.08358862,105320.0,105310.0,0.03321094]
[1749873591109,2.08358862,105320.0,105310.0,0.0587846]
[1749873591414,2.08358862,105320.0,105310.0,0.04394412]
[1749873591817,2.08358862,105320.0,105310.0,0.05878459]
[1749873592115,2.08358862,105320.0,105310.0,0.04394412]
[1749873592319,2.08358862,105320.0,105310.0,0.05878459]
[1749873592519,2.08358862,105320.0,105310.0,0.04394412]
[1749873592719,2.08358862,105320.0,105310.0,0.05878459]
[1749873592922,2.08358862,105320.0,105310.0,0.03321094]
[1749873593112,2.08358862,105320.0,105310.0,0.05878457]
[1749873593308,2.08358862,105320.0,105310.0,0.05878456]
[1749873593512,2.08358862,105320.0,105310.0,0.05878455]
[1749873594017,2.08358862,105320.0,105310.0,0.05878228]
[1749873594217,2.08358862,105320.0,105310.0,0.04805139]
[1749873595221,2.05398537,105320.0,105310.0,0.0929913]
[1749873596220,2.05398537,105320.0,105310.0,0.07815085]
[1749873596615,2.05398537,105320.0,105310.0,0.0929913]
[1749873597924,2.05398537,105320.0,105310.0,0.10372219]